bitfinex-derivatives/quotes_SOLF0:USTF0_20251125
["timestamp","ask_amount","ask_price","bid_price","bid_amount"]
[1764033849708,2.97,138.51,138.45,24.72]
[1764033849905,107.79620187,138.54,138.41,86.54]
[1764033849906,2.97,138.48,138.47,0.05122901]
[1764033850510,3.01713715,138.49,138.47,0.05122901]
[1764033851305,3.01713715,138.49,138.44,3.13]
[1764033851306,2.97,138.47,138.41,9.6344]
[1764033851618,2.97,138.47,138.42,3.13]
[1764033852410,0.05268045,138.46,138.43,3.17685028]
[1764033852611,3.02268045,138.46,138.43,3.17685028]
[1764033852915,0.05268045,138.46,138.43,3.17685028]
[1764033853214,3.02268045,138.46,138.43,3.17685028]
[1764033853918,3.02268045,138.46,138.43,0.04685028]
[1764033854623,3.02268045,138.46,138.43,3.17685028]
[1764033855523,3.02268045,138.46,138.43,0.04685028]
[1764033858513,3.02268045,138.46,138.43,3.08685028]
[1764033858909,3.02268045,138.46,138.43,0.04685028]
[1764033860414,3.1,138.45,138.43,0.04685028]
[1764033862124,9.603,138.45,138.43,0.04685028]
[1764033862326,3.1,138.44,138.43,0.04685028]
[1764033864728,3.15268045,138.46,138.43,3.08685028]
[1764033865023,3.15268045,138.46,138.43,0.04685028]
[1764033865415,3.1,138.43,138.35,1.2554339]
[1764033865616,3.1,138.43,138.35,3.04]
[1764033865819,3.1,138.42,138.35,3.04]
[1764033866020,8.50412151,138.42,138.35,3.04]
[1764033866220,3.1,138.41,138.35,3.04]
[1764033866429,3.15221732,138.39,138.37,0.0522668]
[1764033867124,0.05221732,138.39,138.37,3.0922668]
[1764033867729,3.15221732,138.39,138.37,0.0522668]
[1764033869230,9.65791732,138.39,138.37,0.0522668]
[1764033870121,3.1,138.38,138.37,0.0522668]
[1764033872627,0.05221732,138.39,138.37,0.0522668]
[1764033872628,0.05221732,138.39,138.37,3.0922668]
[1764033872818,0.05221732,138.39,138.37,0.0522668]
[1764033873022,3.15221732,138.39,138.37,0.0522668]
[1764033873922,0.05221732,138.39,138.37,3.0922668]
[1764033874321,3.15221732,138.39,138.37,3.0922668]
[1764033874523,3.15221732,138.39,138.37,0.0522668]
[1764033881336,0.05221732,138.39,138.38,3.04]
[1764033884039,3.15221732,138.39,138.37,0.0522668]
[1764033886641,0.05221732,138.39,138.38,3.04]
[1764033893336,5.51264196,138.39,138.38,3.04]
[1764033896946,8.58264196,138.39,138.37,27.9822668]
[1764033897144,0.05221732,138.39,138.37,27.9822668]
[1764033898444,8.98266658,138.46,138.38,7.18083053]
[1764033898655,24.76,138.49,138.38,7.18083053]
[1764033898656,8.98460752,138.51,138.48,101.1315]
[1764033898846,8.215e-05,138.53,138.51,101.1106]
[1764033899044,1e-08,138.56,138.52,101.1032]
[1764033899239,5.12774278,138.61,138.53,126.3339]
[1764033899446,0.05433151,138.58,138.56,0.04812499]
[1764033899642,3.07,138.63,138.55,105.09233053]
[1764033899837,0.05314348,138.58,138.56,0.04892968]
[1764033900043,0.05395114,138.58,138.57,25.24]
[1764033900546,3.07,138.63,138.57,126.3014]
[1764033900750,3.07,138.68,138.59,101.0515]
[1764033900949,3.07,138.68,138.61,101.0378]
[1764033901143,3.07,138.68,138.62,25.24]
[1764033901544,3.07,138.68,138.64,0.04824196]
[1764033901740,0.04832703,138.66,138.64,101.06434196]
[1764033901946,0.05055866,138.66,138.64,0.04824196]
[1764033902248,0.05055866,138.66,138.64,6.54204196]
[1764033903052,3.07,138.72,138.64,0.04824196]
[1764033904047,3.07,138.68,138.64,0.04824196]
[1764033904251,3.07,138.68,138.65,0.04660191]
[1764033905950,3.07,138.68,138.62,25.2]
[1764033906259,3.07,138.66,138.55,101.0793]
[1764033906450,3.07,138.66,138.58,25.2]
[1764033906949,3.07,138.65,138.58,25.2]
[1764033907151,3.07,138.62,138.61,0.04749741]
[1764033908060,3.07,138.62,138.58,25.2]
[1764033908261,3.07,138.62,138.55,25.18]
[1764033909159,0.0479492,138.6,138.57,0.05348213]
[1764033910463,0.0479492,138.6,138.58,25.16]
[1764033910655,0.0479492,138.6,138.58,126.2185]
[1764033911056,0.0479492,138.6,138.58,25.16]
[1764033911461,0.0479492,138.6,138.59,25.16]
[1764033911863,0.0479492,138.6,138.57,46.05348213]
[1764033912063,0.0479492,138.6,138.57,71.21348213]
[1764033913166,0.0479492,138.6,138.57,25.21348213]
[1764033913368,0.0479492,138.6,138.57,0.05348213]
[1764033913566,3.1179492,138.6,138.57,0.05348213]
[1764033919063,0.0479492,138.6,138.57,0.05348213]
[1764033919469,3.1579492,138.6,138.57,0.05348213]
[1764033921879,3.1579492,138.6,138.46,101.1467]
[1764033922079,3.11,138.6,138.5,25.12]
[1764033922581,3.11,138.59,138.51,6.4997]
[1764033922782,3.11,138.59,138.52,101.1035]
[1764033922979,100.988,138.68,138.52,101.1035]
[1764033922980,0.0508542,138.56,138.54,0.05462624]
[1764033923283,0.05196585,138.56,138.55,31.5981]
[1764033925982,0.05196585,138.56,138.55,25.1]
[1764033926176,3.16196585,138.56,138.54,0.05256306]
[1764033926578,3.16196585,138.56,138.51,25.1]
[1764033927579,3.16196585,138.56,138.52,0.04650714]
[1764033928087,3.11,138.55,138.52,0.04650714]
[1764033934592,3.11,138.53,138.52,0.04650714]
[1764033936092,3.11,138.53,138.46,46.0]
[1764033936293,3.11,138.53,138.46,25.08]
[1764033937092,3.11,138.5,138.48,0.05353186]
[1764033937588,3.11,138.47,138.46,25.08]
[1764033937787,3.11,138.47,138.41,25.06]
[1764033938392,3.11,138.47,138.4,25.06]
[1764033938592,3.15553818,138.45,138.42,0.04756823]
[1764033939886,3.15553818,138.45,138.42,6.55166823]
[1764033940594,0.04553818,138.45,138.43,6.5036]
[1764033949698,0.04553818,138.45,138.43,31.5436]
[1764033955316,0.04553818,138.45,138.43,25.04]
[1764033955611,2.94553818,138.45,138.43,25.04]
[1764033956316,0.04553818,138.45,138.43,25.04]
[1764033956703,0.04553818,138.45,138.43,31.5437]
[1764033957407,2.92553818,138.45,138.42,46.04756823]
[1764033957600,2.92553818,138.45,138.42,0.04756823]
[1764033957800,2.88,138.43,138.34,103.80222874]
[1764033958117,2.88,138.43,138.38,6.506]
[1764033959004,2.92902455,138.42,138.39,0.04892545]
[1764033961508,2.92902455,138.42,138.39,6.55442545]
[1764033962806,2.92902455,138.42,138.4,9.07542874]
[1764033962807,0.04902455,138.42,138.4,9.07542874]
[1764033963207,2.88,138.51,138.45,101.1543]
[1764033963508,2.88,138.51,138.46,27.57052874]
[1764033964016,2.88,138.55,138.48,2.57052874]
[1764033964217,0.05270651,138.53,138.5,0.05120692]
[1764033964417,0.05270651,138.53,138.5,25.05120692]
[1764033964604,0.05270651,138.53,138.5,31.55150692]
[1764033965511,0.05270651,138.53,138.51,6.4997]
[1764033968415,2.88,138.61,138.54,101.0859]
[1764033968618,2.88,138.61,138.55,24.98]
[1764033969322,0.04807268,138.59,138.57,0.04634917]
[1764033969517,2.92807268,138.59,138.57,0.04634917]
[1764033976128,2.88,138.57,138.5,22.04911915]
[1764033976329,2.88,138.56,138.48,24.96]
[1764033976722,3.09,138.54,138.48,24.96]
[1764033976922,3.09,138.57,138.48,126.0899]
[1764033977123,0.05349486,138.54,138.51,0.04795982]
[1764033979023,0.05349486,138.54,138.52,6.4993]
[1764033979224,0.05349486,138.54,138.53,24.94]
[1764033981129,3.14349486,138.54,138.51,0.04795982]
[1764033981938,3.09,138.52,138.46,21.53039202]
[1764033982726,0.04638788,138.5,138.48,0.0518135]
[1764033982926,3.13638788,138.5,138.48,0.0518135]
[1764033983727,0.04638788,138.5,138.48,0.0518135]
[1764033984441,0.04638788,138.5,138.48,6.5530135]
[1764033989250,0.04638788,138.5,138.49,24.92]
[1764033989951,9.5874,138.57,138.49,127.4811]
[1764033990151,9.5874,138.57,138.49,172.0411]
[1764033990343,3.09,138.57,138.5,101.1134]
[1764033990547,3.09,138.57,138.5,147.1134]
[1764033990746,0.04917817,138.55,138.52,0.05396448]
[1764033991755,0.04917817,138.55,138.53,24.92]
[1764033995862,0.04917817,138.55,138.53,31.4188]
[1764034001563,0.04917817,138.55,138.53,6.4988]
[1764034001759,3.13917817,138.55,138.52,0.05396448]
[1764034001960,3.13917817,138.55,138.52,24.93396448]
[1764034003165,3.13917817,138.55,138.52,31.43336448]
[1764034005970,0.04917817,138.55,138.52,31.43336448]
[1764034006165,0.04917817,138.55,138.53,6.4989]
[1764034009571,0.04917817,138.55,138.53,52.4989]
[1764034017173,3.02917817,138.55,138.53,52.4989]
[1764034017379,0.04917817,138.55,138.53,52.4989]
[1764034017770,0.04917817,138.55,138.54,24.84]
[1764034021780,2.95,138.65,138.57,101.0658]
[1764034021976,10.16787156,138.64,138.59,101.0512]
[1764034022277,2.95,138.65,138.6,24.84]
[1764034022478,2.95,138.68,138.63,101.0235]
[1764034022780,2.9958353,138.67,138.64,24.8943554]
[1764034022980,2.99996813,138.67,138.64,24.88734895]
[1764034023481,0.04996813,138.67,138.64,24.88734895]
[1764034024278,0.04996813,138.67,138.65,6.4932]
[1764034027879,0.04996813,138.67,138.64,24.88734895]
[1764034028274,0.04996813,138.67,138.65,24.82]
[1764034029090,2.99996813,138.67,138.65,24.82]
[1764034029284,2.99996813,138.67,138.64,24.86734895]
[1764034030684,0.04996813,138.67,138.64,24.86734895]
[1764034031086,0.04996813,138.67,138.65,6.4932]
[1764034031386,2.56312165,138.66,138.64,0.04734895]
[1764034031693,2.95,138.65,138.64,0.04734895]
[1764034033087,2.95,138.64,138.57,2.56312165]
[1764034033392,2.95,138.63,138.57,24.82]
[1764034034182,2.95,138.6,138.59,0.04995458]
[1764034035284,9.4463,138.59,138.53,6.4987]
[1764034035488,2.95,138.58,138.54,24.82]
[1764034035892,2.95,138.58,138.54,31.3184]
[1764034036089,2.95,138.61,138.54,24.82]
[1764034036391,3.00051747,138.59,138.56,0.05155216]
[1764034036596,0.05051747,138.59,138.57,6.497]
[1764034042104,5.71363912,138.59,138.56,0.05155216]
[1764034042311,0.05051747,138.59,138.56,0.05155216]
[1764034042596,0.05051747,138.59,138.56,6.54905216]
[1764034042804,3.15051747,138.59,138.56,0.05155216]
[1764034042998,3.1,138.57,138.48,2.56312165]
[1764034043196,3.1,138.55,138.49,24.82]
[1764034043399,3.1,138.55,138.5,2.56312165]
[1764034043705,3.1,138.58,138.51,101.1109]
[1764034044007,0.05511491,138.56,138.53,0.04607849]
[1764034044499,0.05511491,138.56,138.54,6.4984]
[1764034044710,0.05511491,138.56,138.54,31.3384]
[1764034048306,0.05511491,138.56,138.54,6.4984]
[1764034048507,0.05511491,138.56,138.55,24.82]
[1764034049311,3.1,138.61,138.55,24.82]
[1764034049312,3.1,138.61,138.55,125.9009]
[1764034050201,0.05313799,138.59,138.57,0.05111413]
[1764034051009,0.05313799,138.59,138.57,6.54791413]
[1764034054013,3.15313799,138.59,138.57,0.05111413]
[1764034054203,3.15313799,138.59,138.57,24.87111413]
[1764034054406,3.15313799,138.59,138.57,0.05111413]
[1764034055313,3.15313799,138.59,138.49,101.1227]
[1764034055504,3.15313799,138.59,138.5,24.82]
[1764034055505,3.1,138.58,138.5,24.82]
[1764034055708,3.1,138.58,138.51,24.82]
[1764034055909,3.1,138.55,138.46,101.1442]
[1764034056116,3.1,138.55,138.47,24.82]
[1764034056313,0.05348755,138.52,138.5,0.05202602]
[1764034058117,3.15348755,138.52,138.5,0.05202602]
[1764034059114,3.1,138.51,138.5,0.05202602]
[1764034065920,3.1,138.5,138.47,24.84]
[1764034066117,3.1,138.5,138.44,52.79047186]
[1764034066323,3.1,138.5,138.44,31.3229]
[1764034066814,3.1,138.5,138.45,6.5026]
[1764034067015,3.08367004,138.49,138.46,0.05241433]
[1764034071017,3.08367004,138.49,138.46,6.55461433]
[1764034071918,3.08367004,138.49,138.46,0.05241433]
[1764034073029,3.08367004,138.49,138.46,6.55461433]
[1764034083033,3.08367004,138.49,138.46,0.05241433]
[1764034083427,0.05367004,138.49,138.46,0.05241433]
[1764034083630,0.05367004,138.49,138.47,6.5018]
[1764034084032,3.19367004,138.49,138.46,0.05241433]
[1764034085730,3.14,138.47,138.4,24.82]
[1764034085940,3.14,138.45,138.4,24.82]
[1764034086241,3.14,138.45,138.32,101.2467]
[1764034086242,3.14,138.43,138.35,22.10914347]
[1764034086434,3.14,138.43,138.35,24.82]
[1764034086632,3.18612165,138.4,138.38,0.05003485]
[1764034093638,3.14,138.38,138.33,1.25747529]
[1764034093830,3.14,138.38,138.3,24.84]
[1764034094335,3.14,138.36,138.29,1.2579071]
[1764034094740,3.14,138.33,138.31,0.02346315]
[1764034099335,3.14,138.33,138.22,105.34426548]
[1764034099537,2.88,138.31,138.23,24.84]
[1764034099737,2.88,138.31,138.23,26.09845297]
[1764034100345,0.05545983,138.28,138.23,26.09845297]
[1764034101144,2.93545983,138.28,138.24,6.5124]
[1764034103438,2.93545983,138.28,138.25,6.512]
[1764034104843,0.05545983,138.28,138.25,6.512]
[1764034105047,2.93545983,138.28,138.23,29.56162622]
[1764034105244,2.93545983,138.28,138.2,126.1963]
[1764034105640,2.93545983,138.28,138.2,127.45504885]
[1764034106041,2.93545983,138.28,138.22,6.5134]
[1764034107541,2.93545983,138.28,138.23,6.513]
[1764034108248,2.88,138.27,138.23,6.513]
[1764034108440,2.88,138.27,138.21,28.6714312]
[1764034108841,2.88,138.26,138.21,6.5138]
[1764034109143,6.5114,138.27,138.21,6.5138]
[1764034109144,2.88,138.24,138.21,6.5138]
[1764034110048,2.93164387,138.25,138.22,6.5135]
[1764034111953,2.93164387,138.25,138.2,31.3742]
[1764034112350,2.93164387,138.25,138.19,24.86]
[1764034112847,2.93164387,138.25,138.21,6.5139]
[1764034113049,2.93164387,138.25,138.19,126.2021]
[1764034113448,2.93164387,138.25,138.19,24.86]
[1764034113853,2.93164387,138.25,138.17,24.86]
[1764034114058,2.93022873,138.22,138.17,24.86]
[1764034115059,2.93022873,138.22,138.19,6.5148]
[1764034115758,2.93022873,138.22,138.17,24.86]
[1764034115759,2.93022873,138.22,138.21,6.5141]
[1764034116263,0.05022873,138.22,138.21,6.5141]
[1764034116962,2.93022873,138.22,138.19,6.5148]
[1764034117168,2.93022873,138.22,138.16,24.86]
[1764034117959,2.88,138.21,138.17,6.5158]
[1764034118158,2.88,138.21,138.16,24.86]
[1764034118360,2.88,138.21,138.16,147.40363791]
[1764034118559,0.05022873,138.22,138.16,147.40363791]
[1764034119160,0.05022873,138.22,138.19,6.5149]
[1764034119371,2.93022873,138.22,138.17,101.3593]
[1764034121272,2.93022873,138.22,138.19,6.5148]
[1764034123874,2.93022873,138.22,138.17,6.5156]
[1764034124067,2.93022873,138.22,138.16,151.42480339]
[1764034125168,2.93022873,138.22,138.18,6.5154]
[1764034126170,2.93022873,138.22,138.19,6.5149]
[1764034127466,2.93022873,138.22,138.17,6.5157]
[1764034127978,2.93022873,138.22,138.14,1.25924988]
[1764034128179,2.94,138.19,138.14,32.65624988]
[1764034128473,2.98846167,138.18,138.14,26.13924988]
[1764034128977,2.98846167,138.18,138.14,32.65654988]
[1764034129178,2.98846167,138.18,138.14,26.13924988]
[1764034129474,2.98846167,138.18,138.16,6.5163]
[1764034130066,0.04846167,138.18,138.16,6.5163]
[1764034133983,2.98846167,138.18,138.14,32.65624988]
[1764034134385,2.98846167,138.18,138.1,101.4087]
[1764034134574,2.98846167,138.18,138.13,6.5178]
[1764034135483,3.11,138.17,138.13,6.5178]
[1764034141985,0.04846167,138.18,138.13,101.3855]
[1764034142390,0.04846167,138.18,138.12,130.29346548]
[1764034142582,0.04846167,138.18,138.15,6.5168]
[1764034143279,0.04846167,138.18,138.16,6.5163]
[1764034143480,6.61568537,138.26,138.18,101.3517]
[1764034143678,5.33019886,138.25,138.19,101.3446]
[1764034143882,5.33019886,138.24,138.19,101.3446]
[1764034144082,14.75825536,138.27,138.19,101.3446]
[1764034144284,5.33221114,138.26,138.22,6.5134]
[1764034144481,5.38541182,138.25,138.23,0.04979103]
[1764034144682,0.05320068,138.25,138.23,0.04979103]
[1764034146495,3.16320068,138.25,138.23,0.04979103]
[1764034147693,0.05320068,138.25,138.23,0.04979103]
[1764034150009,3.16320068,138.25,138.23,0.04979103]
[1764034150301,3.11,138.23,138.16,24.88]
[1764034150496,3.11,138.22,138.16,24.88]
[1764034151093,0.05524563,138.2,138.16,24.88]
[1764034152997,3.16524563,138.2,138.15,2.58040642]
[1764034153192,0.05524563,138.2,138.16,24.88]
[1764034154702,0.05524563,138.2,138.15,2.58040642]
[1764034155001,0.05524563,138.2,138.16,24.88]
[1764034155199,0.05524563,138.2,138.17,6.5158]
[1764034156199,3.11,138.18,138.1,1.25966011]
[1764034156405,0.0495747,138.15,138.11,103.98290642]
[1764034157000,0.0495747,138.15,138.13,2.58040642]
[1764034158206,0.0495747,138.15,138.13,9.09800642]
[1764034159409,0.0495747,138.15,138.14,24.88]
[1764034161096,3.11,138.21,138.14,24.88]
[1764034161097,3.11,138.21,138.15,6.5166]
[1764034161307,3.11,138.21,138.15,2.58040642]
[1764034162013,3.11,138.21,138.16,6.5163]
[1764034162215,0.05093752,138.2,138.17,0.04932881]
[1764034162704,3.18,138.17,138.09,24.88]
[1764034163109,3.18,138.17,138.09,26.13975131]
[1764034163505,3.18,138.16,138.09,1.25975131]
[1764034163711,0.04575147,138.14,138.1,24.9]
[1764034166112,0.04575147,138.14,138.11,24.9]
[1764034167010,3.18,138.13,138.09,1.25975131]
[1764034167307,3.18,138.12,138.06,101.4404]
[1764034167509,3.18,138.12,138.07,24.94]
[1764034167510,0.05467715,138.1,138.07,24.94]
[1764034167705,0.05467715,138.1,138.08,24.96]
[1764034168107,0.05467715,138.1,138.06,1.26011623]
[1764034168411,3.23467715,138.1,138.07,31.4604]
[1764034168717,0.05467715,138.1,138.07,24.94]
[1764034169412,0.05467715,138.1,138.08,6.52]
[1764034173019,0.05467715,138.1,138.08,24.94]
[1764034173020,3.23467715,138.1,138.08,24.94]
[1764034173826,3.23467715,138.1,138.08,31.46]
[1764034174819,0.05467715,138.1,138.08,31.46]
[1764034178022,3.18,138.16,138.12,6.5181]
[1764034178321,3.18,138.16,138.13,24.96]
[1764034178626,3.18,138.16,138.13,31.4777]
[1764034179029,3.22809611,138.16,138.13,0.05346904]
[1764034179218,3.22809611,138.16,138.14,24.96]
[1764034179525,3.22809611,138.16,138.13,0.05346904]
[1764034179727,3.22809611,138.16,138.14,24.96]
[1764034181022,0.04809611,138.16,138.14,24.96]
[1764034182122,0.04809611,138.16,138.14,31.4772]
[1764034189029,3.1,138.22,138.16,101.3672]
[1764034189224,3.1,138.22,138.17,24.94]
[1764034189431,2.58040642,138.24,138.2,6.5144]
[1764034189627,3.1,138.23,138.21,24.94]
[1764034190031,4.58710525,138.23,138.21,24.99202536]
[1764034191525,3.1,138.22,138.21,24.99202536]
[1764034192127,3.1,138.22,138.21,24.97202536]
[1764034196437,3.1,138.22,138.21,0.05202536]
[1764034196737,5.68040642,138.22,138.21,24.97202536]
[1764034198237,5.68040642,138.22,138.21,0.05202536]
[1764034198435,5.68040642,138.22,138.21,24.97202536]
[1764034200042,3.1,138.22,138.21,24.97202536]
[1764034200543,3.1,138.22,138.15,101.3734]
[1764034200544,2.95,138.18,138.15,24.9]
[1764034200935,5.53040642,138.17,138.09,101.4155]
[1764034201136,5.53040642,138.17,138.1,24.9]
[1764034201338,0.04751183,138.15,138.12,0.04863266]
[1764034201643,0.04751183,138.15,138.12,6.56673266]
[1764034202240,6.67218958,138.22,138.2,6.5145]
[1764034202440,1.58259144,138.27,138.21,27.48040642]
[1764034202642,2.95,138.29,138.21,27.48040642]
[1764034202940,2.95,138.29,138.23,2.58040642]
[1764034203238,0.05175764,138.27,138.25,0.0475032]
[1764034203430,0.05175764,138.27,138.26,25.04]
[1764034206346,3.00175764,138.27,138.25,0.0475032]
[1764034206647,3.00175764,138.27,138.16,107.50153519]
[1764034206648,2.95,138.26,138.16,101.3649]
[1764034206840,2.95,138.26,138.17,25.02]
[1764034207148,2.95,138.24,138.14,101.3758]
[1764034207341,2.95,138.24,138.18,25.02]
[1764034207645,3.00147739,138.22,138.2,0.04816417]
[1764034209948,9.51527739,138.22,138.2,0.04816417]
[1764034210144,2.95,138.21,138.2,0.04816417]
[1764034210853,2.95,138.21,138.16,25.02]
[1764034212953,2.95,138.21,138.13,101.3855]
[1764034213142,0.0502708,138.18,138.14,25.02]
[1764034213545,0.0502708,138.18,138.15,6.5167]
[1764034215145,0.0502708,138.18,138.16,6.5163]
[1764034215547,0.0502708,138.18,138.14,25.02]
[1764034216048,0.0502708,138.18,138.15,6.5167]
[1764034216545,0.0502708,138.18,138.14,25.02]
[1764034218148,0.0502708,138.18,138.16,6.5162]
[1764034221755,0.0002708,138.18,138.16,6.5162]
[1764034222060,8.10026862,138.26,138.19,6.5145]
[1764034222261,8.51736658,138.25,138.2,25.0]
[1764034222453,3.05,138.23,138.17,6.5156]
[1764034222654,3.05,138.23,138.18,25.0]
[1764034222856,0.05186917,138.22,138.19,0.04843052]
[1764034223561,3.10186917,138.22,138.19,0.04843052]
[1764034224560,8.52149498,138.21,138.19,0.04843052]
[1764034224758,3.05,138.21,138.19,0.04843052]
[1764034225564,9.5642,138.21,138.19,0.04843052]
[1764034226051,3.05,138.2,138.19,0.04843052]
[1764034228664,8.51869308,138.2,138.19,0.04843052]
[1764034229672,3.05,138.2,138.19,0.04843052]
[1764034229860,8.51908597,138.2,138.19,0.04843052]
[1764034233068,3.05,138.2,138.19,0.04843052]
[1764034233269,8.51997362,138.2,138.19,0.04843052]
[1764034235274,0.05186917,138.22,138.19,0.04843052]
[1764034236057,0.05186917,138.22,138.19,25.00843052]
[1764034237063,3.10186917,138.22,138.19,0.04843052]
[1764034237261,3.10186917,138.22,138.19,25.00843052]
[1764034237667,0.05186917,138.22,138.19,0.04843052]
[1764034237972,0.05186917,138.22,138.19,25.00843052]
[1764034238364,0.05186917,138.22,138.19,31.52323052]
[1764034240087,3.05,138.28,138.21,101.33]
[1764034240273,5.4613851,138.27,138.22,101.3228]
[1764034240570,9.5588,138.33,138.27,6.5111]
[1764034240767,10.50749108,138.32,138.28,24.96]
[1764034240970,10.50749108,138.31,138.28,24.96]
[1764034241173,5.46445061,138.3,138.28,25.00925208]
[1764034241370,0.0521708,138.31,138.28,25.00925208]
[1764034242468,3.1021708,138.31,138.28,0.04925208]
[1764034242673,3.1021708,138.31,138.28,25.00925208]
[1764034243071,0.0521708,138.31,138.28,25.00925208]
[1764034243372,3.1021708,138.31,138.28,0.04925208]
[1764034243577,3.1021708,138.31,138.28,25.00925208]
[1764034243967,9.6116708,138.31,138.28,25.00925208]
[1764034244674,3.05,138.29,138.16,101.3668]
[1764034244873,106.69529534,138.3,138.19,24.96]
[1764034244874,8.4738803,138.28,138.19,24.96]
[1764034245068,3.05,138.28,138.19,24.96]
[1764034245574,3.05,138.28,138.19,70.96]
[1764034245764,0.05077516,138.25,138.22,0.04882567]
[1764034246071,3.10077516,138.25,138.22,0.04882567]
[1764034247675,3.14,138.24,138.22,0.04882567]
[1764034247865,3.14,138.23,138.22,0.04882567]
[1764034248773,3.19077516,138.25,138.22,0.04882567]
[1764034248974,9.6528,138.24,138.22,0.04882567]
[1764034249564,3.14,138.23,138.22,0.04882567]
[1764034250077,9.6528,138.24,138.22,0.04882567]
[1764034250470,3.14,138.23,138.22,0.04882567]
[1764034250870,3.14,138.24,138.22,0.04882567]
[1764034252765,3.14,138.23,138.22,0.04882567]
[1764034253778,3.14,138.21,138.15,6.5167]
[1764034253977,3.14,138.21,138.14,24.94]
[1764034254480,3.14,138.23,138.14,24.94]
[1764034254974,0.05033756,138.2,138.16,6.5162]
[1764034261277,0.05033756,138.2,138.14,70.94]
[1764034261883,2.96,138.18,138.12,46.0]
[1764034262087,0.05104752,138.16,138.13,24.94]
[1764034263584,0.05104752,138.16,138.14,24.94]
[1764034267294,6.5137,138.22,138.16,6.5163]
[1764034267785,9.4731,138.24,138.18,6.5153]
[1764034268085,2.96,138.23,138.19,24.94]
[1764034268287,0.05486648,138.22,138.2,0.04735269]
[1764034268697,10.48539058,138.28,138.2,101.38125269]
[1764034268890,5.44421564,138.27,138.2,101.3339]
[1764034269086,5.0411859,138.28,138.2,101.3339]
[1764034269286,5.44394406,138.27,138.2,101.3339]
[1764034269482,5.04092467,138.28,138.2,101.3339]
[1764034269689,5.44394991,138.27,138.21,101.3298]
[1764034269889,2.96,138.32,138.23,0.04571837]
[1764034270101,8.40551618,138.31,138.24,24.94]
[1764034270387,2.96,138.31,138.24,24.94]
[1764034270586,5.44064424,138.3,138.24,24.94]
[1764034270886,0.04563638,138.28,138.26,0.05552099]
[1764034271283,3.00563638,138.28,138.26,0.05552099]
[1764034271689,9.51653638,138.28,138.26,0.05552099]
[1764034272086,3.00563638,138.28,138.26,0.05552099]
[1764034272298,9.51663638,138.28,138.26,0.05552099]
[1764034272493,2.96,138.27,138.26,0.05552099]
[1764034283314,3.09563638,138.28,138.26,0.05552099]
[1764034284608,9.60653638,138.28,138.26,0.05552099]
[1764034284808,3.05,138.27,138.26,0.05552099]
[1764034285016,3.09563638,138.28,138.26,0.05552099]
[1764034285224,0.04563638,138.28,138.26,0.05552099]
[1764034287827,3.09563638,138.28,138.26,0.05552099]
[1764034288022,3.05,138.27,138.26,0.05552099]
[1764034289216,8.48762606,138.27,138.26,0.05552099]
[1764034292721,3.05,138.27,138.26,0.05552099]
[1764034307244,8.48891392,138.27,138.26,0.05552099]
[1764034307930,2.99,138.25,138.22,46.0]
[1764034308145,2.99,138.25,138.22,24.88]
[1764034308638,101.275,138.29,138.22,24.88]
[1764034308639,2.99,138.29,138.22,28.89817789]
[1764034308843,110.07275053,138.33,138.22,27.45817789]
[1764034308844,2.99,138.32,138.22,27.45817789]
[1764034309038,0.04826233,138.28,138.26,0.05109816]
[1764034309344,0.04683116,138.28,138.26,0.05109816]
[1764034311046,0.04683116,138.28,138.26,6.56269816]
[1764034311944,0.04683116,138.28,138.26,28.09819446]
[1764034312749,0.04683116,138.28,138.26,21.58659446]
[1764034313341,0.04683116,138.28,138.26,30.67617235]
[1764034313547,0.04683116,138.28,138.26,0.05109816]
[1764034315250,2.98,138.35,138.27,103.85887789]
[1764034315452,2.98,138.35,138.29,2.57817789]
[1764034316048,2.98,138.35,138.29,6.51]
[1764034316354,3.03088264,138.33,138.31,0.05322627]
[1764034318056,9.53938264,138.33,138.31,0.05322627]